fUST/lending_fUST_20240130
["ID","MTS","AMOUNT","RATE_DAILY","PERIOD"]
[312964683,1706550638714,-166.666666,0.00023456,2]
[312964684,1706550638723,-166.666666,0.00023969,2]
[312964685,1706550638732,-166.666666,0.00024482,2]
[312964686,1706550638741,-183.093694,0.00024658,2]
[312964687,1706550638751,-166.590491,0.00024892,2]
[312964688,1706550638760,-4729.99614024,0.00025,2]
[312964689,1706550638772,-1829.09841763,0.00025,2]
[312964690,1706550638781,-7653.30118371,0.00025,2]
[312964691,1706550638790,-851.40854634,0.00025868,2]
[312964692,1706550638800,-155.01860223,0.00025872,2]
[312964693,1706550638809,-621.82324981,0.000264,2]
[312964694,1706550638818,-183.093694,0.00026484,2]
[312964695,1706550638827,-608.60582345,0.0002731,2]
[312964696,1706550638840,-9138.49084877,0.00027311,4]
[312964697,1706550638850,-620.09116249,0.0002772,2]
[312964698,1706550638859,-155.0,0.00027747,2]
[312964699,1706550638868,-1000.0,0.00028,28]
[312964700,1706550638878,-1500.0,0.00028,2]
[312964701,1706550638888,-154.9690062,0.00028,2]
[312964702,1706550638897,-182.91706643,0.00028289,2]
[312964703,1706550638906,-3969.97724326,0.00028291,3]
[312965203,1706551832469,-272.91151792,0.00020304,2]
[312965205,1706551832478,-243.43578923,0.00020304,2]
[312965207,1706551832488,-155.0,0.00020305,4]
[312965209,1706551832497,-155.0,0.00020306,2]
[312965211,1706551832506,-1060.68600045,0.00020339,2]
[312965213,1706551832515,-185.61855225,0.00020364,2]
[312965215,1706551832524,-293.81151229,0.00022,4]
[312965217,1706551832533,-4617.337039,0.00022595,2]
[312965219,1706551832545,-20111.9094566,0.00022595,2]
[312965221,1706551832554,-9952.16785935,0.00023,2]
[312965223,1706551832563,-2104.02601214,0.00023253,2]
[312965270,1706551838550,-679.59133109,0.00020303,2]
[312965271,1706551838559,-2124.07344279,0.00023253,2]
[312965554,1706553032616,-155.0,0.00023142,4]
[312965555,1706553032627,-2898.93377602,0.00023143,2]
[312965556,1706553032680,-3416.56359845,0.00023143,2]
[312965558,1706553032705,-460.16776728,0.00023143,2]
[312965560,1706553032716,-151.60370444,0.00023206,2]
[312965563,1706553032728,-5862.59676017,0.00023242,3]
[312965565,1706553032742,-628.52939196,0.00023242,3]
[312965677,1706553038723,-3078.55384787,0.00023242,3]
[312965678,1706553038733,-414.32424213,0.00023243,3]
[312965816,1706553048100,-938.95766712,0.00023243,3]
[312965955,1706554231882,-154.98450155,0.00020926,4]
[312965957,1706554231892,-1584.29146325,0.00021999,2]
[312965959,1706554231901,-293.81151229,0.00022,4]
[312965961,1706554231910,-1088.46835028,0.00023009,2]
[312965963,1706554231920,-155.01860223,0.00023115,2]
[312965965,1706554231929,-155.55727703,0.00023231,2]
[312965967,1706554231938,-5004.84299326,0.00023231,2]
[312965969,1706554231947,-5000.0,0.00023232,2]
[312965971,1706554231956,-17554.69,0.00023233,3]
[312965973,1706554231965,-14628.91,0.00023233,3]
[312965975,1706554231974,-155.01860223,0.00023241,2]
[312965977,1706554231984,-2763.10874683,0.00023241,2]
[312965979,1706554231998,-1578.9733708,0.00023242,2]
[312965981,1706554232007,-300.0,0.00023243,2]
[312965983,1706554232016,-338.67994931,0.00023243,2]
[312965985,1706554232026,-3196.26606373,0.00023243,2]
[312965987,1706554232035,-11850.42675075,0.00023243,2]
[312966099,1706554238517,-1780.54561821,0.00023243,2]
[312966175,1706554246060,-1057.94524125,0.00023232,2]
[312966209,1706554247355,-293.81151229,0.00022,4]
[312966210,1706554247365,-526.346222,0.00023232,2]
[312966211,1706554247374,-763.59512221,0.00023233,3]
[312966245,1706554825617,-262.292,0.0003089,120]
[312966246,1706554825643,-1000.0,0.00032,32]
[312966247,1706554825668,-1000.0,0.00033,33]
[312966248,1706554825693,-1000.0,0.00034,34]
[312966249,1706554825717,-1000.0,0.00035,35]
[312966250,1706554825742,-163.426474,0.00035616,41]
[312966251,1706554825765,-163.426474,0.00035616,61]
[312966252,1706554825788,-163.426474,0.00035616,80]
[312966253,1706554825943,-163.426474,0.00035616,100]
[312966254,1706554825973,-163.426474,0.00035616,120]
[312966255,1706554825999,-3337.538972,0.00035616,120]
[312966256,1706554826022,-1000.0,0.00036,36]
[312966257,1706554826048,-1000.0,0.00037,37]
[312966258,1706554826072,-1000.0,0.00038,38]
[312966259,1706554826095,-1583.03265816,0.00038,120]
[312966260,1706554826155,-1000.0,0.00039,39]
[312966261,1706554826200,-1889.89403497,0.0004,120]
[312966262,1706554826223,-1000.0,0.0004,40]
[312966263,1706554826249,-2500.0,0.0004,35]
[312966264,1706554826273,-33675.94705189,0.0004,120]
[312966265,1706554826295,-4015.87374334,0.0004,120]
[312966266,1706554826317,-6063.0591503,0.0004,90]
[312966267,1706554826353,-150.0,0.00040445,120]
[312966268,1706554826382,-7365.77879518,0.000407,120]
[312966269,1706554826410,-11323.21757738,0.00041,90]
[312966270,1706554826433,-5656.34266867,0.00041,60]
[312966271,1706554826458,-1000.0,0.00041,41]
[312966272,1706554826482,-457.0,0.00041,90]
[312966273,1706554826506,-910902.89097811,0.00041087,60]
[312966274,1706554830362,-798184.28322058,0.00041087,60]
[312966275,1706554830387,-220.56703399,0.00041095,120]
[312966276,1706554830418,-457.0,0.00041465,90]
[312966277,1706554830443,-3337.538972,0.00041553,120]
[312966278,1706554830471,-1563.07097645,0.000418,35]
[312966279,1706554830500,-15051.59515709,0.00042,120]
[312966280,1706554830523,-15000.0,0.00042,120]
[312966281,1706554830547,-1000.0,0.00042,42]
[312966282,1706554830574,-1605.84446556,0.000424,120]
[312966283,1706554830596,-20000.0,0.000424,60]
[312966284,1706554830622,-1000.0,0.00042499,120]
[312966285,1706554830745,-1596.90012602,0.00042947,38]
[312966286,1706554830768,-7392.02457967,0.00043,120]
[312966287,1706554830792,-1000.0,0.00043,43]
[312966288,1706554830819,-457.0,0.00043251,90]
[312966289,1706554830845,-78556.88785201,0.000433,60]
[312966290,1706554830871,-50000.0,0.00043567,120]
[312966291,1706554837343,468.1978116,0.0004,90]
[312966292,1706554838226,3109.08980503,0.00041,90]
[312967844,1706555441433,-608.71079295,0.00021999,2]
[312967846,1706555441445,-293.81151229,0.00022,4]
[312967848,1706555441455,-1379.66627798,0.00023133,2]
[312967850,1706555441465,-168.76336281,0.00023153,2]
[312967852,1706555441474,-927.89838324,0.00023242,2]
[312968520,1706555447238,-654.77725976,0.00023242,2]
[312968522,1706555447248,-2710.54181066,0.00023242,2]
[312968524,1706555447257,-116.76092958,0.00023252,2]
[312970473,1706556632187,-2148.96632704,0.00021669,2]
[312970513,1706556638353,-3468.87109131,0.00021669,2]
[312970514,1706556638414,-10820.93936305,0.00021669,2]
[312970515,1706556638424,-608.71079295,0.00021747,2]
[312970516,1706556638434,-172.990764,0.00021748,2]
[312970517,1706556638443,-199.3903337,0.00021964,2]
[312970518,1706556638453,-2642.4403371,0.00022049,2]
[312970519,1706556638462,-269.755107,0.00022249,2]
[312970520,1706556638472,-233.0629,0.00023137,2]
[312970521,1706556638481,-6097.53,0.00023242,3]
[312970522,1706556638490,-11627.59,0.00023242,3]
[312970523,1706556638499,-471.21066683,0.0002325,2]
[312970524,1706556638508,-2106.19648268,0.0002325,2]
[312970525,1706556638518,-1855.89235868,0.0002325,2]
[312970526,1706556638616,-2037.90012948,0.00023251,2]
[312970563,1706556641630,-1694.74394448,0.00023242,3]
[312970564,1706556641657,-7994.90605552,0.00023242,3]
[312970565,1706556641667,-38.71634532,0.00023251,2]
[312970566,1706556641680,-4186.71816279,0.00023251,2]
[312970567,1706556641689,-1546.2490476,0.00023252,2]
[312970568,1706556641703,-2646.50190884,0.00023252,2]
[312970569,1706556641712,-4936.15298748,0.00023252,2]
[312970570,1706556641722,-300.0,0.00023252,2]
[312970571,1706556641734,-3196.26606373,0.00023252,2]
[312970572,1706556641743,-338.67994931,0.00023252,2]
[312970573,1706556641752,-2087.09739776,0.00023252,2]
[312970574,1706556641762,-16089.63949546,0.00023252,2]
[312970575,1706556641774,-904.78843572,0.00023252,2]
[312970749,1706557832364,-608.71079295,0.00019952,2]
[312970751,1706557832374,-155.0,0.00019953,3]
[312970753,1706557832383,-1946.06427778,0.00019953,2]
[312970755,1706557832395,-1273.39200881,0.00019953,2]
[312970758,1706557832407,-106.8514967,0.00019953,2]
[312970760,1706557832416,-500.0,0.00019954,2]
[312970762,1706557832424,-696.04990234,0.00019964,2]
[312970764,1706557832435,-2971.00526136,0.00019964,2]
[312970766,1706557832445,-24900.0,0.00020667,2]
[312970768,1706557832454,-1503.6050481,0.00020923,2]
[312970770,1706557832463,-755.87855476,0.00020923,5]
[312970772,1706557832473,-200.0,0.00022732,7]
[312970774,1706557832483,-21703.07731623,0.00023018,2]
[312970776,1706557832492,-306.0,0.000231,2]
[312970778,1706557832500,-3894.05,0.0002323,3]
[312970780,1706557832509,-995.27318575,0.00023248,2]
[312970782,1706557832518,-527.10191996,0.00023249,2]
[312970784,1706557832527,-1243.37082882,0.0002325,2]
[312970786,1706557832536,-4817.36489966,0.0002325,2]
[312970788,1706557832545,-19841.98899806,0.0002325,2]
[312970973,1706557840229,-1073.90887775,0.0002325,2]
[312970974,1706557840238,-471.21066683,0.0002325,2]
[312970975,1706557840247,-1736.90156007,0.0002325,2]
[312971084,1706557843544,-1674.83355622,0.00023242,3]
[312971087,1706557843556,-2226.02284046,0.00023242,3]
[312971089,1706557843566,-1355.75528558,0.00023242,3]
[312971091,1706557843579,-1656.01035399,0.00023242,3]
[312971093,1706557843593,-513.07796375,0.00023242,3]
[312971095,1706557843602,-4432.46389911,0.0002325,2]
[312971098,1706557843615,-13052.65755164,0.0002325,2]
[312971100,1706557843628,-493.72137242,0.0002325,2]
[312971102,1706557843637,-5212.65916057,0.0002325,2]
[312971104,1706557843646,-1172.1405147,0.0002325,2]
[312971106,1706557843659,-934.05596798,0.0002325,2]
[312971107,1706557843668,-155.01860223,0.0002325,2]
[312971109,1706557843677,-3202.93787655,0.0002325,2]
[312971112,1706557843691,-4615.09118028,0.0002325,2]
[312971114,1706557843700,-155.01860223,0.0002325,2]
[312971116,1706557843709,-2076.6164748,0.0002325,2]
[312971118,1706557843718,-21215.36550241,0.00023252,2]
[312971173,1706557865168,309.9690031,0.00012912,2]
[312971174,1706557890160,1110.88845161,0.00012912,2]
[312971175,1706557891975,343.51188799,0.00012912,2]
[312971176,1706557898764,155.0,0.00012912,2]
[312971177,1706557903974,343.51188799,0.00012912,2]
[312971178,1706557906126,1110.88845161,0.00012912,2]
[312971179,1706557916757,155.54941111,0.00012912,2]
[312971180,1706557920165,195.52150677,0.00012912,2]
[312971181,1706557921988,271.24160511,0.00012912,2]
[312971182,1706557932424,683.16231896,0.00012912,2]
[312971183,1706557938499,234.50593159,0.00012912,2]
[312971184,1706557943118,86.24954416,0.00012912,2]
[312971185,1706557943145,1203.62193183,0.00012912,2]
[312971186,1706557948395,683.16231896,0.00012912,2]
[312971187,1706557954379,234.50593159,0.00012912,2]
[312971188,1706557963208,1289.87147599,0.00012912,2]
[312971189,1706557966393,206.40123497,0.00012912,2]
[312971190,1706557970373,234.60895932,0.00012912,2]
[312971191,1706557979108,1147.82814734,0.00012912,2]
[312971192,1706557979142,142.04332865,0.00012912,2]
[312971193,1706557990480,234.60895932,0.00012912,2]
[312971194,1706557999214,1289.87147599,0.00012912,2]
[312971195,1706558006387,165.36248915,0.00012912,2]
[312971196,1706558019127,197.2730026,0.00012912,2]
[312971200,1706558154132,165.894904,0.00012912,2]
[312971201,1706558187604,938.81479124,0.00012912,2]
[312971204,1706558205672,261.16779363,0.00012912,2]
[312971251,1706559032630,-154.98450155,0.00020313,4]
[312971252,1706559032641,-500.0,0.00020313,2]
[312971253,1706559032650,-639.28847169,0.00020313,2]
[312971254,1706559032660,-1868.50136376,0.00020314,2]
[312971255,1706559032670,-608.71079295,0.00020314,2]
[312971256,1706559032679,-1724.83269454,0.00020319,2]
[312971257,1706559032693,-18162.68243242,0.00020319,2]
[312971259,1706559032703,-297.83181427,0.0002032,2]
[312971261,1706559032712,-309.29107459,0.00020895,2]
[312971263,1706559032722,-1199.48200298,0.00020907,2]
[312971265,1706559032731,-24900.0,0.00020998,2]
[312971267,1706559032741,-411.4153483,0.00022434,2]
[312971269,1706559032750,-153.0,0.00022434,2]
[312971270,1706559032759,-153.0,0.00022434,2]
[312971273,1706559032769,-153.0,0.00022434,2]
[312971275,1706559032778,-153.0,0.00022434,2]
[312971276,1706559032787,-153.0,0.000225,2]
[312971278,1706559032797,-153.0,0.000225,2]
[312971280,1706559032806,-153.0,0.00022534,2]
[312971282,1706559032816,-153.0,0.00022534,2]
[312971284,1706559032825,-164.486678,0.00022578,2]
[312971286,1706559032835,-153.0,0.000226,2]
[312971288,1706559032844,-153.0,0.000226,2]
[312971291,1706559032854,-153.0,0.00023078,2]
[312971293,1706559032863,-155.01860223,0.00023131,2]
[312971294,1706559032873,-7677.66,0.00023227,3]
[312971296,1706559032882,-9213.19,0.00023229,3]
[312971298,1706559032891,-11055.83,0.00023237,3]
[312971300,1706559032900,-13267.0,0.00023239,3]
[312971302,1706559032910,-818.24868862,0.00023247,2]
[312971303,1706559032919,-1578.9733708,0.00023247,2]
[312971304,1706559032928,-5000.0,0.00023247,2]
[312971305,1706559032937,-155.55727703,0.00023247,2]
[312971306,1706559032947,-5004.84299326,0.00023247,2]
[312971307,1706559032956,-151.0,0.00023247,2]
[312971308,1706559032966,-188.856946,0.00023247,2]
[312971309,1706559032975,-825.86473384,0.00023248,2]
[312971310,1706559032985,-3238.32135489,0.00023249,2]
[312971311,1706559032994,-471.21066683,0.00023249,2]
[312971312,1706559033003,-20915.89787581,0.00023249,2]
[312971313,1706559033013,-7818.02905683,0.00023249,2]
[312971314,1706559033022,-151.0,0.00023249,2]
[312971315,1706559033031,-151.0,0.00023249,2]
[312971316,1706559033042,-1528.24697,0.00023249,2]
[312971317,1706559033051,-1528.24697,0.00023249,2]
[312971318,1706559033061,-155.25655737,0.0002325,2]
[312971319,1706559033070,-155.01860223,0.0002325,2]
[312971320,1706559033080,-2072.82232947,0.0002325,2]
[312971321,1706559033090,-7966.81883748,0.00023251,2]
[312971322,1706559033100,-995.27318575,0.00023251,2]
[312971323,1706559033109,-151.0,0.00023251,2]
[312971324,1706559033119,-249.0,0.00023251,2]
[312971325,1706559033130,-151.0,0.00023251,2]
[312971326,1706559033139,-1533.703378,0.00023251,2]
[312971327,1706559033148,-1533.703378,0.00023251,2]
[312971328,1706559033158,-151.0,0.00023251,2]
[312971329,1706559033167,-1528.24697,0.00023251,2]
[312971330,1706559033176,-1528.24697,0.00023251,2]
[312971331,1706559033186,-3685.45709627,0.00023252,2]
[312971365,1706559038681,-9528.99621733,0.00023252,2]
[312971368,1706559038695,-7588.09535476,0.00023252,2]
[312971411,1706559041787,-2161.74915654,0.00023242,3]
[312971412,1706559041799,-4236.30084346,0.00023242,3]
[312971413,1706559041809,-20878.82011708,0.00023252,2]
[312971425,1706559046716,-12040.17653342,0.00023251,2]
[312971950,1706560239301,-1584.29146325,0.0001999,2]
[312971952,1706560239311,-639.28847169,0.0001999,2]
[312971954,1706560239321,-155.0,0.00019991,3]
[312971956,1706560239330,-47.17792695,0.00019991,2]
[312971960,1706560239358,-166.50684345,0.00019991,2]
[312971962,1706560239367,-1295.09273991,0.00019992,2]
[312971964,1706560239377,-155.0,0.0002,2]
[312971966,1706560239386,-679.59133109,0.0002,2]
[312971968,1706560239396,-1199.58942855,0.00020001,2]
[312971970,1706560239406,-155.0,0.00020002,2]
[312971972,1706560239415,-6698.09520488,0.00020003,2]
[312972127,1706560241002,-6041.78031691,0.00020003,2]
[312972129,1706560241014,-12160.12447821,0.00020003,2]
[312972131,1706560241023,-169.462454,0.00021058,2]
[312972133,1706560241033,-293.81151229,0.00022,4]
[312972135,1706560241042,-620.00455813,0.00022918,2]
[312972137,1706560241051,-4129.40816068,0.00023241,3]
[312972140,1706560241062,-1259.82183932,0.00023241,3]
[312972142,1706560241071,-4491.03,0.00023241,3]
[312972144,1706560241081,-3742.52,0.00023241,3]
[312972146,1706560241091,-3118.77,0.00023241,3]
[312972148,1706560241100,-155.06158408,0.00023249,2]
[312972150,1706560241109,-523.34168566,0.00023249,2]
[312972152,1706560241118,-155.01860223,0.00023249,2]
[312972154,1706560241128,-295.12770733,0.00023249,2]
[312972156,1706560241137,-309.87767732,0.00023249,2]
[312972158,1706560241146,-521.0,0.00023249,2]
[312972160,1706560241155,-78.44599595,0.0002325,2]
[312972492,1706560244142,-345.12869652,0.0002325,2]
[312976847,1706561431992,-507.3397372,0.00020677,2]
[312976848,1706561432004,-131.94873449,0.00020677,2]
[312976849,1706561432014,-556.09376711,0.00020678,2]
[312976850,1706561432026,-1226.63911469,0.00020923,2]
[312976866,1706561438902,-381.08066281,0.00020578,3]
[312976869,1706561438912,-154.9690062,0.00020676,4]
[312976871,1706561438921,-354.03293297,0.00020923,2]
[312976873,1706561438930,-169.462454,0.00020993,2]
[312976874,1706561438939,-306.412039,0.00021332,2]
[312976876,1706561438949,-12171.94290502,0.00021366,2]
[312977100,1706561441245,-1926.40816408,0.00021366,2]
[312977102,1706561441257,-5474.09416,0.00021366,2]
[312977104,1706561441267,-157.42504049,0.00022,4]
[312977106,1706561441276,-1480.85994301,0.00022784,2]
[312977108,1706561441286,-312.5134984,0.00023014,2]
[312977110,1706561441295,-151.53182002,0.00023134,2]
[312977112,1706561441304,-197.83181426,0.00023149,2]
[312977114,1706561441314,-151.9547315,0.00023204,2]
[312977116,1706561441323,-2967.72,0.0002324,3]
[312977118,1706561441332,-1256.90955245,0.0002324,3]
[312977120,1706561441343,-1216.19044755,0.0002324,3]
[312977122,1706561441353,-1697.2441966,0.00023249,2]
[312977124,1706561441363,-1198.11015777,0.00023249,2]
[312977126,1706561441372,-213.46268132,0.00023249,2]
[312977128,1706561441381,-155.20470337,0.00023249,2]
[312977130,1706561441390,-838.81206769,0.00023249,2]
[312977132,1706561441399,-678.72611072,0.00023249,2]
[312977134,1706561441408,-155.03720446,0.00023249,2]
[312977136,1706561441417,-1583.7528565,0.00023249,2]
[312977138,1706561441427,-688.5172537,0.00023249,2]
[312977140,1706561441435,-2040.63936826,0.00023249,2]
[312977142,1706561441445,-171.07208762,0.00023249,2]
[312977144,1706561441454,-8731.65656299,0.00023249,2]
[312977400,1706561443953,-1052.84888023,0.0002324,3]
[312977623,1706561446081,-435.34359155,0.0002324,3]
[312977626,1706561446095,-572.72752822,0.0002324,3]
[312977629,1706561446105,-4553.4526366,0.00023249,2]
[312977632,1706561446115,-6911.23548752,0.0002325,2]
[312977637,1706561446141,-1055.58334996,0.0002325,2]
[312977639,1706561446151,-46.83772411,0.0002325,2]
[312977641,1706561446160,-253.20925919,0.0002325,2]
[312980138,1706561631403,1764.73099551,0.0001631,2]
[312980139,1706561647330,660.6073795,0.000125,2]
[312980345,1706562632192,-154.9690062,0.00020593,4]
[312980346,1706562632201,-761.87978738,0.00020594,5]
[312980347,1706562632211,-290.03387886,0.00020598,2]
[312980348,1706562632220,-4194.84745838,0.0002069,2]
[312980349,1706562632232,-20705.15254162,0.0002069,2]
[312980350,1706562632242,-163.32257243,0.00020703,2]
[312980351,1706562632251,-3595.82796446,0.00020807,2]
[312980352,1706562632260,-1990.5463715,0.00020808,2]
[312980353,1706562632269,-245.64947409,0.0002081,2]
[312980355,1706562632279,-562.24130719,0.00020917,2]
[312980357,1706562632288,-320.48457184,0.00020917,2]
[312980359,1706562632297,-620.0002279,0.00022861,2]
[312980360,1706562632306,-21703.07731623,0.00023014,2]
[312980361,1706562632315,-155.75566436,0.00023139,2]
[312980363,1706562632324,-1401.0,0.00023238,3]
[312980365,1706562632333,-2671.61,0.00023238,3]
[312980366,1706562632343,-1610.48559315,0.00023239,2]
[312980367,1706562632352,-194.05544766,0.00023246,2]
[312980368,1706562632361,-1503.6050481,0.00023246,2]
[312980369,1706562632370,-527.10191996,0.00023247,2]
[312980371,1706562632379,-602.9736358,0.00023248,2]
[312980372,1706562632388,-1243.37082882,0.00023248,2]
[312980373,1706562632397,-4817.36489966,0.00023248,2]
[312980374,1706562632406,-18309.22783137,0.00023248,2]
[312980375,1706562632419,-788.92948271,0.00023248,2]
[312980411,1706562638244,-154.9690062,0.00020592,2]
[312980413,1706562638253,-743.83168398,0.00023248,2]
[312980415,1706562638263,-555.1784186,0.00023249,2]
[312980417,1706562638272,-587.02675322,0.00023249,2]
[312980418,1706562638281,-761.18084106,0.00023249,2]
[312980429,1706562638373,-743.96549552,0.00023249,2]
[312980432,1706562638383,-9.34023507,0.0002325,2]
[312980435,1706562638392,-282.21584826,0.0002325,2]
[312980998,1706562643243,-2226.34,0.0002324,3]
[312981000,1706562643252,-17.78415174,0.0002325,2]
[312981002,1706562643262,-284699.36026642,0.0002325,2]
[312981004,1706562643271,-2087.09739776,0.0002325,2]
[312981006,1706562643280,-3196.26606373,0.0002325,2]
[312981008,1706562643289,-338.67994931,0.0002325,2]
[312981010,1706562643297,-7671.609666,0.00023251,2]
[312981012,1706562643306,-284.3726907,0.00023251,2]
[312981015,1706562643315,-500.0,0.00023251,2]
[312981018,1706562643324,-156.38102366,0.00023252,2]
[312981021,1706562643333,-535.52033051,0.00023252,2]
[312981024,1706562643343,-155.89246044,0.00023252,2]
[312981026,1706562643351,-155.89255893,0.00023252,2]
[312981029,1706562643360,-155.14984419,0.00023252,2]
[312981032,1706562643369,-155.02640519,0.00023252,2]
[312981034,1706562643378,-2314.67089073,0.00023253,2]
[312981037,1706562643388,-5000.0,0.00023253,2]
[312981040,1706562643397,-2622.11067685,0.00023253,2]
[312981043,1706562643406,-5000.0,0.00023253,2]
[312981046,1706562643415,-1727.68839823,0.00023253,2]
[312981048,1706562643424,-3496.85756003,0.00023253,2]
[312981050,1706562643433,-151.0,0.00023253,2]
[312981052,1706562643442,-1380.33304,0.00023253,2]
[312981054,1706562643451,-151.0,0.00023253,2]
[312981056,1706562643459,-1222.597576,0.00023253,2]
[312981058,1706562643468,-1222.597576,0.00023253,2]
[312981060,1706562643478,-3680.05646956,0.00023957,2]
[312981062,1706562643487,-2167.87557279,0.00023957,2]
[312981064,1706562643496,-9138.49084877,0.00024,2]
[312981066,1706562643505,-151.0,0.00024,2]
[312981068,1706562643513,-1380.33304,0.00024,2]
[312981070,1706562643522,-151.0,0.00024,2]
[312981072,1706562643531,-1222.597576,0.00024,2]
[312981074,1706562643542,-1222.597576,0.00024,2]
[312981076,1706562643553,-620.0000114,0.00024004,2]
[312981078,1706562643562,-162.74995,0.00024658,2]
[312981080,1706562643571,-7653.30118371,0.00025,2]
[312981082,1706562643580,-1829.09841763,0.00025,2]
[312981084,1706562643589,-4729.99614024,0.00025,2]
[312981086,1706562643598,-246.109748,0.00025,2]
[312981088,1706562643607,-1380.33304,0.00025,2]
[312981090,1706562643617,-151.0,0.00025,2]
[312981091,1706562643627,-245.615834,0.00025,2]
[312981092,1706562643635,-1222.597576,0.00025,2]
[312981093,1706562643644,-1222.597576,0.00025,2]
[312981094,1706562643653,-200.0,0.00025314,7]
[312981095,1706562643662,-162.74995,0.00026712,2]
[312981096,1706562643672,-196.7000636,0.00026849,2]
[312981097,1706562643681,-498.54555384,0.00026875,5]
[312981099,1706562643783,-151.0,0.00027182,2]
[312981100,1706562643792,-155.0,0.00027397,2]
[312981102,1706562643801,-164.95618985,0.00027397,10]
[312981104,1706562643810,-182.91706643,0.00028,2]
[312981106,1706562643819,-155.00930056,0.00028,2]
[312981108,1706562643827,-1380.33304,0.00028,2]
[312981110,1706562643837,-1380.33304,0.00028,2]
[312981112,1706562643846,-151.0,0.00028,2]
[312981114,1706562643855,-1222.597576,0.00028,2]
[312981116,1706562643864,-1222.597576,0.00028,2]
[312981118,1706562643873,-1500.0,0.00028,2]
[312981120,1706562643884,-3870.42773648,0.00028,4]
[312981122,1706562643893,-2903.83996079,0.00028,2]
[312981124,1706562643903,-190.2727316,0.00028121,2]
[312981126,1706562643912,-150.0,0.00028287,2]
[312981128,1706562643921,-272.43128512,0.00028289,2]
[312981130,1706562643930,-155.38294502,0.00028289,2]
[312981132,1706562643939,-6969.00513262,0.00028289,2]
[312981134,1706562643947,-366.10179068,0.00028289,2]
[312981136,1706562643956,-904.37484693,0.00028289,2]
[312981138,1706562643965,-155.61679895,0.00028289,2]
[312981140,1706562643975,-155.01860223,0.00028289,2]
[312981142,1706562643984,-201.08800032,0.00028289,2]
[312981144,1706562643993,-329.19745495,0.00028289,2]
[312981146,1706562644002,-1380.33304,0.00028289,2]
[312981148,1706562644011,-1380.33304,0.00028289,2]
[312981150,1706562644020,-151.0,0.00028289,2]
[312981152,1706562644030,-1222.597576,0.00028289,2]
[312981154,1706562644040,-1222.597576,0.00028289,2]
[312981156,1706562644049,-2442.33662247,0.0002829,5]
[312981158,1706562644059,-2710.54181066,0.00028744,2]
[312981160,1706562644068,-329.61572276,0.00028745,2]
[312981162,1706562644078,-155.06354729,0.00028745,2]
[312981164,1706562644088,-155.7119032,0.00028746,2]
[312981166,1706562644096,-291.27881753,0.00028746,2]
[312981168,1706562644106,-155.25446757,0.00028746,2]
[312981170,1706562644115,-342.49705284,0.00028747,2]
[312981172,1706562644125,-302.12279675,0.00028747,2]
[312981174,1706562644133,-173.82399701,0.00028747,2]
[312981176,1706562644143,-3971.98419525,0.00028747,2]
[312981178,1706562644152,-303.74433034,0.00028747,2]
[312981180,1706562644161,-680.67452781,0.00028747,2]
[312981181,1706562644173,-4017.99473219,0.00028747,2]
[312981184,1706562644183,-426.38170713,0.00028747,2]
[312981185,1706562644192,-588.43545532,0.00028747,2]
[312981187,1706562644201,-574.77781384,0.00028747,2]
[312981189,1706562644210,-195.76432188,0.00028747,2]
[312981191,1706562644220,-155.06694377,0.00028747,2]
[312981193,1706562644230,-841.24051252,0.00028747,2]
[312981195,1706562644239,-1380.33304,0.00028747,2]
[312981197,1706562644248,-1380.33304,0.00028747,2]
[312981199,1706562644257,-151.0,0.00028747,2]
[312981201,1706562644266,-1222.597576,0.00028747,2]
[312981203,1706562644276,-1222.597576,0.00028747,2]
[312981205,1706562644285,-155.58047114,0.00028748,2]
[312981207,1706562644295,-1827.7377922,0.00028748,2]
[312981209,1706562644304,-155.1953438,0.00028748,2]
[312981211,1706562644314,-195.06700815,0.00028748,2]
[312981213,1706562644323,-500.0,0.00028748,2]
[312981215,1706562644332,-155.0,0.00028767,2]
[312981217,1706562644343,-162.74995,0.00028767,2]
[312981219,1706562644352,-304.51628414,0.00028799,2]
[312981221,1706562644361,-500.0,0.00028799,2]
[312981223,1706562644370,-500.0,0.00028799,2]